{"text_format":"1","workbook":"xlsx","n_sheets":8,"sheets":["企業健診について","1.健康診断申込書","ID","2.受診者リスト","オプション項目","取り込み用","契約コース内容","運用について"],"not_rendered":{"charts":0,"images":4,"macros":1,"external_links":0,"defined_names":7,"comments":0,"pivot_tables":0},"unopened":[],"bounds":{"document_bytes":16777216,"sheet_cells":100000,"rows_first":2000,"rows_last":500,"rows_between":2000,"halvings":0,"cell_chars":16384,"cell_head_chars":4096},"cells_cut":0,"cells_raw":0,"read":"whole","date_system":"1900"}

{"sheet":"企業健診について","index":0,"n_rows":32,"n_cols":4,"rows_kept":32,"cut":false,"hidden":false,"merged":[[30,1,30,31],[29,1,29,31],[31,1,31,31],[0,1,0,31],[11,1,12,31],[2,1,2,31],[3,1,3,31],[4,1,4,31],[8,3,8,21],[7,3,7,21]]}
[null,"2022年度協会けんぽ 企業健診申込について"]
[]
[null,"2020年度より協会けんぽへの申込制度の廃止及び当院の予約システム刷新に伴い企業健診の"]
[null,"お申込みが変わりました。下記の必要書類をご用意の上、ご予約頂きますようお願い申し上げます。"]
[]
[]
[null,null,null,"【企業健診申込みに必要な書類】"]
[null,null,null,"　1.健康診断申込書"]
[null,null,null,"　2.受診者リスト　添付書類/協会けんぽ健診対象者一覧※"]
[]
[]
[null,"【※】協会けんぽより年度初めに企業様宛へ送付される書類となります。紛失の場合は協会けんぽにて再発行や情報提供サービスからダウンロード可能です。情報提供サービスの利用方法は『全国健康保険協会のホームページ』をご覧下さい。"]
[]
[]
[null,"【注意事項】"]
[null,"請求書発行はご予約10名様以上のご予約を取り纏めて頂ける企業様のみとさせて頂きます。"]
[null,"9名様以下の企業様及び個人でのはお申込みは当日支払いとなります"]
[null,"尚、企業様控えは『労働安全衛生規則』に定められた検査結果の提供となります。"]
[null,"ご理解ご協力の程よろしくお願い申し上げます。"]
[]
[]
[null,null,"■お申込み方法お問合せ（TEL）"]
[null,null,"医療法人 福岡桜十字 桜十字福岡病院 <人間ドック・健診センター>"]
[null,null,"TEL : 092-791-1120  "]
[null,null,"受付時間 平日 8:30～16:30 ／ 第 １・３土曜 8:30～12:00"]
[null,null,"（但し、祝日及び年始第1土曜日は休診日となります。）"]
[]
[]
[]
[null,"書類確認後、当院より健診日程のご連絡をさせて頂きます。"]
[null,"年度初めは健診のお申込を多く頂く為、予約の日程調整にお時間をいただく場合がございます。"]
[null,"順番に対応致しますので、ご了承の程よろしくお願い申し上げます。"]

{"sheet":"1.健康診断申込書","index":1,"n_rows":37,"n_cols":27,"rows_kept":37,"cut":false,"hidden":false,"merged":[[29,1,29,5],[29,6,29,26],[25,2,25,6],[25,7,25,9],[25,10,25,14],[25,15,25,17],[25,18,25,22],[25,23,25,25],[26,2,26,6],[26,7,26,9],[26,10,26,14],[26,15,26,17],[14,9,16,26],[20,1,22,1],[20,2,20,22],[20,23,20,26],[21,2,21,22],[21,23,21,26],[22,2,22,22],[22,23,22,26],[0,15,0,18],[0,19,0,21],[1,1,1,26],[3,1,5,4],[3,5,3,7],[3,8,3,26],[4,5,5,26],[2,1,2,26],[30,1,30,26],[9,1,9,4],[9,5,9,13],[9,14,9,17],[9,18,9,26],[18,2,18,25],[10,1,11,4],[10,5,11,13],[10,14,11,17],[10,18,10,19],[10,20,10,26],[11,18,11,26],[14,1,14,4],[14,5,14,7],[15,1,15,4],[15,5,15,7],[6,1,8,4],[6,6,6,7],[6,9,6,11],[6,12,6,26],[7,5,8,26]]}
[null,"2022年度協会けんぽ 企業健診申込について",null,null,null,null,null,null,null,null,null,null,null,null,null,"お 申 込 日",null,null,null,2022,null,null,"年",null,"月",null,"日"]
[null,"2 0 2 2 年 度 協 会 け ん ぽ 健 康 診 断 申 込 書 "]
[null,"1.健康診断申込書（本用紙）2.受診者リスト（添付書類/協会けんぽ健診対象者一覧）と共にFAXでお申込み下さい。"]
[null,"事  業  所  名",null,null,null,"フ リ ガ ナ"]
[]
[]
[null,"事業所所在地",null,null,null,"〒",null,null,"-"]
[]
[]
[null,"電  話  番  号",null,null,null,null,null,null,null,null,null,null,null,null,"Ｆ Ａ Ｘ 番 号"]
[null,"担  当  部  署",null,null,null,null,null,null,null,null,null,null,null,null,"担当者様名",null,null,null,"フリガナ"]
[]
[]
[null,"◎報告書控え発行について",null,null,null,null,null,null,"希望項目に〇をつけてください"]
[null,"控え要",null,null,null,null,null,null,null,"＊2020年度より企業様控えは『労働安全衛生規則』に定められた検査結果の提供となります。（ご本人様用と書式が異なります）\n請求書発行が可能な企業様の場合、請求書送付時に企業控えは同封させて頂きます。"]
[null,"控え不要"]
[]
[null,"◎請求書発行について"]
[null,null,"請求書発行はご予約10名様以上のご予約を取り纏めて頂ける企業様のみとさせて頂きます。\n9名様以下の企業様及び個人でのお申込みは当日支払いとなります。"]
[null,"請求内容",null,null,null,"3パターンより請求内容を１つお選び下さい。希望内容に〇をつけてください"]
[null,"請　求 内 容"," 主コース (一般健診 / 定期診断B）のみ"]
[null,null,"主コース (一般健診 / 定期診断B） + 胃カメラ差額"]
[null,null,"主コース (一般健診 / 定期診断B） + 胃カメラ差額 + 付加 + 乳がん検診 + 子宮頚がん検診"]
[]
[null,null,"請求発行可の項目（協会けんぽ補助利用時の負担額　※税込み金額で表示）"]
[null,null,"一般健診",null,null,null,null,"7,169円",null,null,"付加健診",null,null,null,null,"4,802円",null,null,"子宮頸がん検診",null,null,null,null,"1,039円"]
[null,null,"乳がん検診（40歳～48歳）",null,null,null,null,"1,686円",null,null,"乳がん検診（50歳以上）",null,null,null,null,"1,086円",null,null,"*当院オプションは当日支払いとなります\n"]
[]
[null,"◎送付先確認　※上記の事業所所在地と請求書の発送先が異なる場合のみご記入下さい。"]
[null,"請求書（企業控) 送付先",null,null,null,null,"〒"]
[null,"尚、ご本人様向け書類（問診票 / 健診結果報告書）の送付先はFAX記載内容確認のご連絡と併せて確認させていただきます。"]
[]
[null,null,"■お申込み方法(FAXにて受付）・お問合せ"]
[null,null,"医療法人福岡桜十字 桜十字福岡病院 <人間ドック・健診センター>"]
[null,null,"TEL : 092-791-1120",null,null,null,null,null,null,null,"FAX : 092-791-5650"]
[null,null,"受付時間 平日 8:30～16:30／第1・3土曜日 8:30～12:00"]
[null,null,"（但し、祝日及び年始第1土曜日は休診日となります。）"]

{"sheet":"ID","index":2,"n_rows":1,"n_cols":11,"rows_kept":1,"cut":false,"hidden":true,"merged":[]}
["ID","カナ氏名","氏名","性別","生年月日","団体1・団体番号","本人家族区分","任継区分","被保険者証等記号","被保険者証等番号","保険者番号"]

{"sheet":"2.受診者リスト","index":3,"n_rows":23,"n_cols":22,"rows_kept":23,"cut":false,"hidden":false,"merged":[[7,14,7,15],[7,16,7,18],[0,0,0,1],[1,0,1,1],[3,3,3,4],[4,3,4,4],[7,8,7,10],[7,11,7,13],[2,8,4,8]]}
["企業名（事業所名称）",null,"企業ID"]
[null,null,null,null,null,null,null,null,"【数は記入しないでください】",null,null,null,"差額\n人間ドック",{"$f":"COUNTIF(テーブル2[差額人間ドック],\"○\")","v":0}]
["＊ご加入の情報をご記入ください。",null,null,null,null,null,null,null,"主コース","協会一般",{"$f":"COUNTIF(テーブル2[主コース],\"協会一般\")","v":0},null,"胃カメラ",{"$f":"COUNTIF(テーブル2[胃部X線検査を胃カメラへ変更],\"○\")","v":0}]
["契約番号","被保険者証記号","保険者番号","保険者名称",null,null,null,null,null,"定期B",{"$f":"COUNTIF(テーブル2[主コース],\"定期B\")","v":0},null,"付加健診",{"$f":"COUNTIF(テーブル2[付加健診(40・50歳）],\"○\")","v":0}]
[null,null,null,"全国健康保険協会　●●支部",null,null,null,null,null,"計",{"$f":"SUM(K3:K4)","v":0},null,"協会\n子宮頸がん",{"$f":"COUNTIF(テーブル2[協会子宮頸がん\n20歳～74歳偶数年齢],\"○\")","v":0}]
[null,null,null,null,null,null,null,null,null,null,null,null,"協会乳がん",{"$f":"COUNTIF(テーブル2[協会乳がん\n40歳～74歳偶数年齢],\"<>\")","v":0}]
[]
["＊受診者様の情報を入力ください。当院ＩＤ・年齢は入力不要です＊",null,null,null,null,null,"2023-04-01","起算","健診コース\n（色付きは補助対象項目）",null,null,"協会オプション健診 \n（色付きは補助対象項目）",null,null,"当院オプション",null,"日程希望",null,null,"■ご希望日に空きがない場合は別日のご提案となります"]
["当院ID\n入力不要","施設","被保険証番号（個人）","氏名（全角）\n姓と名の間にスペースを入れて登録","ﾌﾘｶﾞﾅ（半角）\n姓と名の間にｽﾍﾟｰｽを入れて登録","性別","生年月日","年度末年齢\n(自動算出）","主コース","差額人間ドック","胃部X線検査を胃カメラへ変更","付加健診(40・50歳）","協会子宮頸がん\n20歳～74歳偶数年齢","協会乳がん\n40歳～74歳偶数年齢","オプション1","オプション2","第１希望日","第2希望日","第3希望日","提案日","受付時間","備考"]
[{"$f":"IFERROR(INDEX(ID[[#All],[ID]],MATCH(テーブル2[[#This Row],[ﾌﾘｶﾞﾅ（半角）\n姓と名の間にｽﾍﾟｰｽを入れて登録]],ID[[#All],[カナ氏名]],0)),\"\")","v":""},"桜十字福岡病院",null,null,null,null,null,{"$f":"IF(G10=\"\",\"\",DATEDIF(G10,$G$8,\"Y\"))","v":""}]
[{"$f":"IFERROR(INDEX(ID[[#All],[ID]],MATCH(テーブル2[[#This Row],[ﾌﾘｶﾞﾅ（半角）\n姓と名の間にｽﾍﾟｰｽを入れて登録]],ID[[#All],[カナ氏名]],0)),\"\")","v":""},null,null,null,null,null,null,""]
[{"$f":"IFERROR(INDEX(ID[[#All],[ID]],MATCH(テーブル2[[#This Row],[ﾌﾘｶﾞﾅ（半角）\n姓と名の間にｽﾍﾟｰｽを入れて登録]],ID[[#All],[カナ氏名]],0)),\"\")","v":""},null,null,null,null,null,null,""]
[{"$f":"IFERROR(INDEX(ID[[#All],[ID]],MATCH(テーブル2[[#This Row],[ﾌﾘｶﾞﾅ（半角）\n姓と名の間にｽﾍﾟｰｽを入れて登録]],ID[[#All],[カナ氏名]],0)),\"\")","v":""},null,null,null,null,null,null,""]
[{"$f":"IFERROR(INDEX(ID[[#All],[ID]],MATCH(テーブル2[[#This Row],[ﾌﾘｶﾞﾅ（半角）\n姓と名の間にｽﾍﾟｰｽを入れて登録]],ID[[#All],[カナ氏名]],0)),\"\")","v":""},null,null,null,null,null,null,""]
[{"$f":"IFERROR(INDEX(ID[[#All],[ID]],MATCH(テーブル2[[#This Row],[ﾌﾘｶﾞﾅ（半角）\n姓と名の間にｽﾍﾟｰｽを入れて登録]],ID[[#All],[カナ氏名]],0)),\"\")","v":""},null,null,null,null,null,null,""]
[{"$f":"IFERROR(INDEX(ID[[#All],[ID]],MATCH(テーブル2[[#This Row],[ﾌﾘｶﾞﾅ（半角）\n姓と名の間にｽﾍﾟｰｽを入れて登録]],ID[[#All],[カナ氏名]],0)),\"\")","v":""},null,null,null,null,null,null,""]
[{"$f":"IFERROR(INDEX(ID[[#All],[ID]],MATCH(テーブル2[[#This Row],[ﾌﾘｶﾞﾅ（半角）\n姓と名の間にｽﾍﾟｰｽを入れて登録]],ID[[#All],[カナ氏名]],0)),\"\")","v":""},null,null,null,null,null,null,""]
[{"$f":"IFERROR(INDEX(ID[[#All],[ID]],MATCH(テーブル2[[#This Row],[ﾌﾘｶﾞﾅ（半角）\n姓と名の間にｽﾍﾟｰｽを入れて登録]],ID[[#All],[カナ氏名]],0)),\"\")","v":""},null,null,null,null,null,null,""]
[{"$f":"IFERROR(INDEX(ID[[#All],[ID]],MATCH(テーブル2[[#This Row],[ﾌﾘｶﾞﾅ（半角）\n姓と名の間にｽﾍﾟｰｽを入れて登録]],ID[[#All],[カナ氏名]],0)),\"\")","v":""},null,null,null,null,null,null,""]
[{"$f":"IFERROR(INDEX(ID[[#All],[ID]],MATCH(テーブル2[[#This Row],[ﾌﾘｶﾞﾅ（半角）\n姓と名の間にｽﾍﾟｰｽを入れて登録]],ID[[#All],[カナ氏名]],0)),\"\")","v":""},null,null,null,null,null,null,""]
[{"$f":"IFERROR(INDEX(ID[[#All],[ID]],MATCH(テーブル2[[#This Row],[ﾌﾘｶﾞﾅ（半角）\n姓と名の間にｽﾍﾟｰｽを入れて登録]],ID[[#All],[カナ氏名]],0)),\"\")","v":""},null,null,null,null,null,null,""]
[{"$f":"IFERROR(INDEX(ID[[#All],[ID]],MATCH(テーブル2[[#This Row],[ﾌﾘｶﾞﾅ（半角）\n姓と名の間にｽﾍﾟｰｽを入れて登録]],ID[[#All],[カナ氏名]],0)),\"\")","v":""},null,null,null,null,null,null,""]
[{"$f":"IFERROR(INDEX(ID[[#All],[ID]],MATCH(テーブル2[[#This Row],[ﾌﾘｶﾞﾅ（半角）\n姓と名の間にｽﾍﾟｰｽを入れて登録]],ID[[#All],[カナ氏名]],0)),\"\")","v":""},null,null,null,null,null,null,{"$f":"IF(G23=\"\",\"\",DATEDIF(G23,$G$8,\"Y\"))","v":""}]

{"sheet":"オプション項目","index":4,"n_rows":53,"n_cols":4,"rows_kept":53,"cut":false,"hidden":false,"merged":[[0,0,0,2],[2,0,3,1],[2,2,3,2],[2,3,3,3],[13,0,15,0],[50,0,50,3],[37,0,39,0],[41,0,42,0],[4,0,6,0],[7,0,12,0],[44,0,47,0],[49,0,49,3],[19,0,22,0],[23,0,26,0],[27,0,29,0],[30,0,31,0],[32,0,33,0],[34,0,36,0],[17,0,18,0]]}
["オプション検査表"]
[null,null,null,"（2022年度版）"]
["検査項目",null,"方法／内容","説明"]
[]
["乳腺",null,"X線検査","近年最も増加している乳がんをX線検査します。50歳以上の方に適した検査です。"]
[null,"マンモグラフィ\n　　（2方向）","X線検査","近年最も増加している乳がんをX線検査します。40代の方には2方向での撮影をおすすめします。"]
[null,"乳腺エコー","超音波検査","乳腺を超音波で精査します。乳腺が発達している若い方や妊娠中・授乳中の方、マンモグラフィと合わせて詳しく調べたい方におすすめします。"]
["婦人科","子宮頸部細胞診","細胞診検査","医師が細胞の採取を行ないます。20歳以上の方を対象に、2年に1度の継続的な検査をおすすめします。"]
[null,"HPV検査","細胞診検査","子宮頸がんを誘発する可能性のあるHPV（ヒトパピローマウイルス）への感染の有無を調べる検査です。検査は、子宮頸がん検査（細胞診）と同時にでき、より精密な検査ができます。"]
[null,"経膣エコー ※1","超音波検査","プローブ（超音波を発する探触子）に使い捨てのキャップをかぶせて膣内に挿入し、子宮や卵巣の状況を観察します。苦痛もなく、X 線撮影のように放射線を使うこともないので被曝の心配もありません。"]
[null,"エクオール検査","尿検査","腸内で、大豆イソフラボンから「エクオール」が作られているかを調べます。更年期の症状が気になるゆらぎ世代の方々におすすめです。"]
[null,"ホルモンチェック","血液検査","血液検査による卵巣機能の検査です。血液中のFSH（卵胞刺激ホルモン）、E 2（エラストラジオール）といった女性ホルモンの値を調べることで、更年期障害や閉経しているかどうかがわかります。"]
[null,"CA125\n（卵巣がんマーカー）","血液検査","卵巣がんに特異性の高い検査です。"]
["脳","頭部MRI・MRA ※1","頭部MRI・MRA","無症状の脳梗塞や脳出血・くも膜下出血などの頭部病変の手がかりを調べる検査です。MRIは脳の断面を、MRAは血管を画像化します。"]
[null,"頸動脈エコー","超音波検査","超音波によって頸動脈の動脈硬化の程度を見る検査で、将来の脳梗塞のリスクなども評価します。高血圧・高脂血症の方は定期的な検査をおすすめします。"]
[null,"脳検査セット ※1","・頭部MRI・MRA\n・頸動脈エコー","脳の状態を電磁波検査と超音波検査の両方から検査します。MRI・MRA検査と超音波検査の両方を希望される方は、こちらをご利用下さい。"]
["動脈硬化","LOX-index","血液検査","脳梗塞や心筋梗塞の原因となる動脈硬化の状態を、従来のどの検査よりも早期に評価でき、今後10年以内の脳梗塞や心筋梗塞の発症リスクがわかる最新の検査です。近親者でこれらの疾患の既往歴がある方、コレステロールや血糖値が高い方、喫煙されている40歳以上の方などにおすすめです。"]
["心臓","安静時心電図","心電図","心臓の動きに異常がないか、病気の有無などを測定します。"]
[null,"NTPro-BNP\n（心疾患マーカー）","血液検査","血液検査で、心臓の健康度を測定します。心不全、心筋梗塞の早期発見にも役立ちます。"]
["肺","喀痰検査","喀痰細胞診検査","痰（たん）に混入しているがん細胞の有無を、顕微鏡で検査します。肺がんが気になる方には、胸部CT検査と合わせての実施をおすすめします。"]
[null,"胸部CT　　　　　※1","CT検査","肺がんは日本人のがん死亡率で男性1位、女性2位と非常に多い疾患です。CT検査による肺がんの発見率は、X線検査の約8倍とされており、早期に見つかる割合が高いことが特徴です。肺がんリスクの高い喫煙者や、家族歴のある方にはぜひおすすめの検査です。"]
[null,"Pro-GRP\n（肺がんマーカー）","血液検査","小細胞肺がんの診断に用いられる腫瘍マーカーです。"]
[null,"シフラ\n（肺がんマーカー）","血液検査","肺扁平上皮がんで高値を示す腫瘍マーカーです。"]
["胃","胃透視","上部消化管X線検査","バリウムを飲んでX線で食道・胃・十二指腸の上部消化管の撮影を行い、異常の有無を確認します。"]
[null,"胃カメラ","上部消化管内視鏡検査","内視鏡を使用して、食道・胃・十二指腸を直接観察します。\n経口・経鼻・鎮静剤使用などの対応も可能です。"]
[null,"ヘリコバクターピロリIgG","血液検査","胃潰瘍や胃がんの原因と言われる、ピロリ菌に感染していないかを調べます。"]
[null,"ABC検査\n（胃がんリスク検診）","・ﾍﾘｺﾊﾞｸﾀｰﾋﾟﾛﾘIgG\n・ペプシノゲン","ピロリ菌感染の有無と胃粘膜萎縮の程度を測定し、胃がんリスクを判定します。明らかな消化器症状のある方や治療中の方、ヘリコバクター・ピロリ菌の除菌治療をされた方は正しい結果が得られない可能性がありますので、ご注意ください。"]
["大腸","便潜血","便検査（2日法）","便中の血液混入の有無を判断する検査です。大腸がんを早期発見する手がかりとなります。"]
[null,"大腸カメラ","下部消化管内視鏡検査","内視鏡を使用して全大腸を直接観察します。大腸がんは、女性で1番、男性では3番目に多い死因です。ご経験のない方には、一度実施することをおすすめします。"]
[null,"CEA\n（大腸がんマーカー）","血液検査","大腸がん発見の手がかりとなる検査です。便潜血とセットでの受診をおすすめします。"]
["肝臓・膵臓","AFP\n（肝臓がんマーカー）","血液検査","肝臓がん発見の手がかりとなる検査です。"]
[null,"CA19-9\n（膵がんマーカー）","血液検査","膵臓がん発見の手がかりとなる検査です。胃がんや大腸がんなど、消化器系のがんにも反応を示します。"]
["腹部全体","腹部エコー","超音波検査","超音波で肝臓・胆のう・すい臓・腎臓・ひ臓・腹部大動脈を観察し、各臓器の腫瘍や炎症などを評価する検査です。"]
[null,"腹部CT　　　　　※1","ヘリカルCT検査","腹部エコー同様に、腹部の各臓器をCTで精密に観察します。"]
["肝炎検査","HBs抗原\n（B型肝炎ウイルス検査）","血液検査","肝炎ウイルスの一つです。輸血や性交などで感染し、肝硬変や肝臓がんなどに発展します。"]
[null,"HBs抗体\n（B型肝炎ウイルス検査）","血液検査","HBs抗原に対する抗体の有無を調べる検査です。"]
[null,"HCV抗体\n（C型肝炎ウイルス検査）","血液検査","肝炎ウイルスの一つです。輸血や性交などで感染し、肝硬変や肝臓がんなどに発展します。"]
["メタボリック","HbA1C\n（糖尿病検査）","血液検査","過去1～2か月の食生活の状況を反映した、血糖の平均値がわかります。値が高い方は糖尿病の疑いがあります。"]
[null,"眼底カメラ","眼底検査","眼底血管は、直接目で見て観察できる唯一の血管です。くも膜下出血、糖尿病、動脈硬化、高血圧など、血管障害にからむ全身の病気の診断にも有効です。"]
[null,"内脂肪CT　　　　※1","CT検査","CTを使って腹部の内臓脂肪の量を測定します。内臓脂肪から出されるさまざまな物質は、高血圧、高脂血症、糖尿病などを引き起こします。"]
["前立腺","高感度PSA\n（前立腺がんマーカー）","血液検査","前立腺がんに特異性の高い検査です。自覚症状のない段階での早期発見にも役立ちます。40歳以上の男性におすすめします。"]
["甲状腺","甲状腺エコー","超音波検査","甲状腺機能異常や甲状腺がんのスクリーニング検査です。血液検査とあわせて行うことをおすすめします。"]
[null,"TSH・FT3・FT4","血液検査","女性に多い甲状腺機能異常（バセドウ病、橋本病など）を評価します。原因不明の倦怠感、むくみ、動機、発汗、体重減少などが甲状腺機能異常であったということはよくあることです。"]
["リウマチ","抗CCP抗体","血液検査","女性に多い病気と言われる、リウマチに特異性の高い検査項目です。"]
["その他","骨密度検査","X線検査","女性ホルモンの減少と深くかかわるため、40歳以上の女性、特に閉経後の方には定期的な検査をおすすめします。29年度より超音波からX線を用いた検査方法へ移行しましたので、妊娠の可能性のある方は実施が出来かねます。"]
[null,"風疹抗体検査","血液検査","風疹に対する免疫があるかどうかを調べる検査です。"]
[null,"麻疹抗体検査","血液検査","麻疹に対する免疫があるかどうかを調べる検査です。"]
[null,"血液型（ABO・Rh）","血液検査","万が一の事故で輸血が必要となる場合に役立ちます。運転従事者の方におすすめします。"]
[]
["※1 桜十字博多駅健診クリニックでの受診は不可、桜十字福岡病院での受診となります"]
["その他、詳細やご不明な点がありましたらお気軽にお問い合わせください"]
["  "]
["  "]

{"sheet":"取り込み用","index":5,"n_rows":1,"n_cols":33,"rows_kept":1,"cut":false,"hidden":true,"merged":[]}
["受診施設","受付フロア","予約日","予約時間帯コード","呼出時間","団体番号","個人番号","カナ氏名","漢字氏名","性別","生年月日","保険者番号","被保険者証等記号","被保険者証等番号","契約番号","主コース","胃カメラ","協会マンモ","協会子宮","オプション","オプション","本人・家族区分","従業員コード","部署コード１","部署コード２","部署コード３","郵便番号","住所１","住所２","予約コメント","E-MAIL","加入健保団体番号","予約区分"]

{"sheet":"契約コース内容","index":6,"n_rows":27,"n_cols":2,"rows_kept":27,"cut":false,"hidden":true,"merged":[]}
["F0001","◆天神◆定期健康診断Ｂ"]
["F0002","◇博多◇定期健康診断Ｂ"]
["F0003","◆天神◆定期健康診断Ａ"]
["F0101","◇博多◇定期健康診断Ａ"]
["FK001","協会けんぽ一般健診"]
["FK002","協会けんぽ付加健診"]
["FK003","◆天神◆協会けんぽ付加健診同項目"]
["FK004","◆天神◆協会けんぽ一般健診同項目"]
["FK005","◆天神◆協会けんぽ差額人間ドック"]
["FK008","◇博多◇協会けんぽ付加健診同項目"]
["FK009","◇博多◇協会けんぽ一般健診同項目"]
["FK010","◇博多◇協会けんぽ差額人間ドック"]
["FK099","協会けんぽ肝炎ウィルス検査"]
["FK100","協会けんぽ子宮頸がん検診"]
["FK101","協会けんぽ乳がん検診(2方向)"]
["FK102","協会けんぽ乳がん検診(1方向)"]
["FZ001","◆天神◆マンモグラフィ(1方向)"]
["FZ002","◆天神◆マンモグラフィ(2方向)"]
["FZ003","◆天神◆乳腺超音波"]
["FZ004","◆天神◆子宮頸部細胞診"]
["FZ032","◇博多◇マンモグラフィ(1方向)"]
["FZ033","◇博多◇マンモグラフィ(2方向)"]
["FZ034","◇博多◇乳腺超音波"]
["FZ036","◇博多◇子宮頸部細胞診"]
["FZ100","【R2/窓口払い】インフルエンザ予防接種"]
["FZC01","胃カメラ(差額5500円)"]
["FZC02","胃カメラ差額(上下セット)"]

{"sheet":"運用について","index":7,"n_rows":10,"n_cols":5,"rows_kept":10,"cut":false,"hidden":true,"merged":[[5,1,9,1],[5,2,9,2],[5,0,9,0]]}
[null,"業務内容","流れ","詳細","システム"]
["①","既存ID抽出","当院→企業","個人一覧より企業登録の既存の情報を抽出しエクセルデーターを作成","★企業やり取りエクセルデータ"]
[]
["②","今年度の受診対象者リスト作成","企業→当院","①のエクセルデータに今年度の対象者・検査コース・OPなど希望内容を担当者で整え提供してもらう","★企業やり取りエクセルデータ"]
[]
["③","予約枠・契約・日程を調整する","当院","新規ID作成（ワイズマン作成自動化あり）","★ID自動化CSV作成"]
[null,null,null,"団体契約運用を作成　（協会けんぽ親団体で運用）"]
[null,null,null,"日程を仮枠で提供　もしくは　日程を確定し提供","★一括オーダ取り込みCSV作成"]
[null,null,null,"仮枠を提供","★仮枠提供一覧作成"]
[null,null,null,"日程を確定","★日程表一覧作成"]